fUST/lending_fUST_20250115
["ID","MTS","AMOUNT","RATE_DAILY","PERIOD"]
[349030251,1736944251632,-3855.6,0.00021913,3]
[349030252,1736944251644,-1000.0,0.00021917,2]
[349030253,1736944251655,-1000.0,0.00021917,2]
[349030254,1736944251666,-1000.0,0.00021917,2]
[349030255,1736944251675,-1004.319089,0.00021917,2]
[349030256,1736944251685,-1916.28,0.00021917,2]
[349030257,1736944251696,-1916.28,0.00021917,2]
[349030258,1736944251705,-1916.28,0.00021917,2]
[349030259,1736944251715,-1916.28,0.00021917,2]
[349030260,1736944251727,-1916.28,0.00021917,2]
[349030261,1736944251737,-1916.28,0.00021917,2]
[349030262,1736944251747,-1916.28,0.00021917,2]
[349030263,1736944251757,-1916.28,0.00021917,2]
[349030264,1736944251767,-405.10017332,0.00021934,2]
[349030265,1736944251776,-500.0,0.00021973,2]
[349030266,1736944251786,-500.0,0.00022,2]
[349030267,1736944251797,-500.0,0.00022,2]
[349030268,1736944251806,-500.0,0.00022,2]
[349030269,1736944251816,-500.0,0.00022,2]
[349030270,1736944251826,-392.0,0.00022,2]
[349030271,1736944251835,-500.0,0.00022,2]
[349030272,1736944251845,-4790.29,0.00022,14]
[349030273,1736944251855,-286.267143,0.00022,7]
[349030274,1736944251865,-286.267143,0.00022,7]
[349030275,1736944251875,-7716.12747621,0.00022,7]
[349030276,1736944251886,-163.0,0.00022,2]
[349030277,1736944251896,-2553.94,0.00022,14]
[349030278,1736944251906,-2253.92879591,0.00022007,2]
[349030279,1736944251917,-2070.0,0.00022037,2]
[349030280,1736944251932,-536.0,0.00022037,2]
[349030281,1736944251941,-2311.0,0.00022037,2]
[349030282,1736944251951,-405.10017332,0.00022038,2]
[349030283,1736944251960,-884.67,0.00022045,3]
[349030284,1736944251971,-500.0,0.00022045,3]
[349030285,1736944251981,-520.6,0.00022045,3]
[349030286,1736944251992,-922.1,0.00022046,3]
[349030287,1736944252003,-588.73,0.00022046,3]
[349030288,1736944252012,-500.0,0.00022046,3]
[349030289,1736944252022,-722.24,0.00022046,3]
[349030290,1736944252032,-500.0,0.00022046,3]
[349030291,1736944252042,-644.29,0.00022046,3]
[349030292,1736944252052,-581.19,0.00022046,3]
[349030293,1736944252061,-870.67,0.00022046,3]
[349030294,1736944252072,-594.37,0.00022046,3]
[349030295,1736944252083,-17754.08,0.00022046,3]
[349030296,1736944252093,-550.36,0.00022047,3]
[349030297,1736944252102,-500.0,0.00022047,3]
[349030298,1736944252112,-500.0,0.00022047,3]
[349030299,1736944252122,-500.0,0.00022047,3]
[349030300,1736944252131,-12842.54,0.00022047,3]
[349030301,1736944252143,-502.04,0.00022047,3]
[349030302,1736944252153,-500.0,0.00022047,3]
[349030303,1736944252163,-500.0,0.00022048,3]
[349030304,1736944252173,-150.21,0.00022048,2]
[349030305,1736944252183,-150.21,0.00022048,2]
[349030306,1736944252192,-173.38169921,0.00022048,2]
[349030307,1736944252203,-150.64876833,0.00022048,2]
[349030308,1736944252213,-478.32994116,0.00022048,3]
[349030309,1736944252223,-500.0,0.00022048,2]
[349030310,1736944252233,-150.21,0.00022048,2]
[349030311,1736944252243,-150.21,0.00022048,2]
[349030312,1736944252252,-500.0,0.00022048,2]
[349030313,1736944252262,-500.0,0.00022048,2]
[349030314,1736944252272,-150.21,0.00022048,2]
[349030315,1736944252282,-150.21,0.00022048,2]
[349030316,1736944252292,-500.0,0.00022048,3]
[349030317,1736944252302,-500.0,0.00022048,3]
[349030318,1736944252312,-2046.57,0.00022049,3]
[349030319,1736944252322,-1536.16,0.00022049,3]
[349030320,1736944252332,-604.24,0.00022049,3]
[349030321,1736944252343,-4188.84,0.00022049,3]
[349030322,1736944252353,-3855.6,0.0002205,3]
[349030323,1736944252364,-150.412,0.00022052,2]
[349030324,1736944252373,-152.051,0.00022106,2]
[349030325,1736944252384,-150.21,0.00022117,3]
[349030326,1736944252395,-150.21,0.00022117,2]
[349030327,1736944252405,-150.21,0.00022117,3]
[349030328,1736944252414,-405.10017332,0.00022141,2]
[349030329,1736944252426,-155.02,0.00022171,2]
[349030330,1736944252437,-884.67,0.00022182,3]
[349030331,1736944252446,-500.0,0.00022182,3]
[349030332,1736944252458,-922.1,0.00022183,3]
[349030333,1736944252467,-588.73,0.00022183,3]
[349030334,1736944252476,-500.0,0.00022183,3]
[349030335,1736944252487,-722.24,0.00022183,3]
[349030336,1736944252579,-500.0,0.00022183,3]
[349030337,1736944252588,-644.29,0.00022183,3]
[349030338,1736944252598,-581.19,0.00022183,3]
[349030339,1736944252608,-870.67,0.00022183,3]
[349030340,1736944252617,-594.37,0.00022183,3]
[349030341,1736944252627,-17754.08,0.00022183,3]
[349030342,1736944252637,-550.36,0.00022184,3]
[349030343,1736944252647,-500.0,0.00022184,3]
[349030344,1736944252657,-500.0,0.00022184,3]
[349030345,1736944252667,-500.0,0.00022184,3]
[349030346,1736944252676,-12842.54,0.00022184,3]
[349030347,1736944252686,-502.04,0.00022184,3]
[349030348,1736944252696,-500.0,0.00022184,3]
[349030349,1736944252706,-376.05578523,0.00022185,3]
[349030350,1736944252715,-500.0,0.00022185,2]
[349030351,1736944252727,-500.0,0.00022185,3]
[349030352,1736944252736,-500.0,0.00022185,3]
[349030353,1736944252746,-2046.57,0.00022186,3]
[349030354,1736944252756,-1536.16,0.00022186,3]
[349030355,1736944252765,-604.24,0.00022186,3]
[349030356,1736944252776,-4188.84,0.00022186,3]
[349030357,1736944252786,-3855.6,0.00022187,3]
[349030358,1736944252795,-163.0,0.00022192,2]
[349030359,1736944252805,-2253.92879591,0.00022242,2]
[349030360,1736944252815,-405.10017332,0.00022245,2]
[349030361,1736944252825,-160.0,0.00022252,3]
[349030362,1736944252835,-151.0,0.00022273,2]
[349030363,1736944252844,-151.0,0.00022273,2]
[349030364,1736944252853,-151.0,0.00022273,2]
[349030365,1736944252863,-151.0,0.00022273,2]
[349030366,1736944252873,-151.0,0.00022273,2]
[349030367,1736944252882,-151.0,0.00022273,2]
[349030368,1736944252893,-151.0,0.00022273,2]
[349030369,1736944252903,-151.0,0.00022273,2]
[349030370,1736944252912,-151.0,0.00022273,2]
[349030371,1736944252923,-151.0,0.00022273,2]
[349030372,1736944252933,-151.0,0.00022273,2]
[349030373,1736944252943,-151.0,0.00022273,2]
[349030374,1736944252952,-151.0,0.00022273,2]
[349030375,1736944252963,-151.0,0.00022273,2]
[349030376,1736944252972,-151.0,0.00022273,2]
[349030377,1736944252981,-151.0,0.00022273,2]
[349030378,1736944252991,-151.0,0.00022273,2]
[349030379,1736944253001,-151.0,0.00022273,2]
[349030380,1736944253011,-151.0,0.00022273,2]
[349030381,1736944253020,-151.0,0.00022273,2]
[349030382,1736944253029,-151.0,0.00022273,2]
[349030383,1736944253037,-151.0,0.00022273,2]
[349030384,1736944253047,-200.18,0.00022273,2]
[349030385,1736944253056,-156.0,0.00022273,2]
[349030386,1736944253065,-156.0,0.00022273,2]
[349030387,1736944253075,-156.0,0.00022273,2]
[349030388,1736944253084,-156.0,0.00022273,2]
[349030389,1736944253093,-217.21,0.00022273,2]
[349030390,1736944253103,-300.0,0.000223,10]
[349030391,1736944253112,-151.0,0.00022309,6]
[349030392,1736944253122,-884.67,0.00022319,3]
[349030393,1736944253131,-500.0,0.00022319,3]
[349030394,1736944253143,-286.267143,0.0002232,7]
[349030395,1736944253152,-286.267143,0.0002232,7]
[349030396,1736944253161,-922.1,0.0002232,3]
[349030397,1736944253171,-588.73,0.0002232,3]
[349030398,1736944253180,-500.0,0.0002232,3]
[349030399,1736944253189,-722.24,0.0002232,3]
[349030400,1736944253199,-373.76,0.0002232,3]
[349030401,1736944253208,-644.29,0.0002232,3]
[349030402,1736944253217,-581.19,0.0002232,3]
[349030403,1736944253227,-870.67,0.0002232,3]
[349030404,1736944253236,-594.37,0.0002232,3]
[349030405,1736944253247,-17754.08,0.0002232,3]
[349030406,1736944253256,-550.36,0.00022321,3]
[349030407,1736944253265,-500.0,0.00022321,3]
[349030408,1736944253274,-500.0,0.00022321,3]
[349030409,1736944253283,-500.0,0.00022321,3]
[349030410,1736944253293,-12842.54,0.00022321,3]
[349030411,1736944253303,-502.04,0.00022321,3]
[349030412,1736944253312,-500.0,0.00022321,3]
[349030413,1736944253322,-151.33817747,0.00022322,2]
[349030414,1736944253331,-225.25139827,0.00022322,2]
[349030415,1736944253341,-150.21,0.00022322,2]
[349030416,1736944253350,-500.0,0.00022322,2]
[349030417,1736944253359,-500.0,0.00022322,2]
[349030418,1736944253370,-150.21,0.00022322,2]
[349030419,1736944253379,-500.0,0.00022322,2]
[349030420,1736944253390,-500.0,0.00022322,3]
[349030421,1736944253399,-500.0,0.00022322,3]
[349030422,1736944253408,-2046.57,0.00022323,3]
[349030423,1736944253417,-1536.16,0.00022323,3]
[349030424,1736944253427,-604.24,0.00022323,3]
[349030425,1736944253437,-4188.84,0.00022323,3]
[349030426,1736944253446,-3855.6,0.00022324,3]
[349030427,1736944253455,-3525.66902379,0.00022328,3]
[349030428,1736944253464,-405.10017332,0.00022348,2]
[349030429,1736944253474,-251.36735358,0.00022391,3]
[349030430,1736944253483,-278.14797643,0.00022391,2]
[349030431,1736944253492,-151.6292374,0.00022391,3]
[349030432,1736944253501,-405.10017332,0.00022452,2]
[349030433,1736944253511,-884.67,0.00022456,3]
[349030434,1736944253520,-500.0,0.00022456,3]
[349030435,1736944253530,-922.1,0.00022457,3]
[349030436,1736944253539,-588.73,0.00022457,3]
[349030437,1736944253549,-500.0,0.00022457,3]
[349030438,1736944253558,-722.24,0.00022457,3]
[349030439,1736944253567,-644.29,0.00022457,3]
[349030440,1736944253576,-581.19,0.00022457,3]
[349030441,1736944253586,-870.67,0.00022457,3]
[349030442,1736944253596,-594.37,0.00022457,3]
[349030443,1736944253606,-17754.08,0.00022457,3]
[349030444,1736944253615,-550.36,0.00022458,3]
[349030445,1736944253624,-500.0,0.00022458,3]
[349030446,1736944253633,-500.0,0.00022458,3]
[349030447,1736944253643,-500.0,0.00022458,3]
[349030448,1736944253653,-12842.54,0.00022458,3]
[349030449,1736944253662,-502.04,0.00022458,3]
[349030450,1736944253672,-229.83,0.00022458,3]
[349030451,1736944253681,-500.0,0.00022459,2]
[349030452,1736944253691,-500.0,0.00022459,3]
[349030453,1736944253700,-500.0,0.00022459,3]
[349030454,1736944253710,-2046.57,0.0002246,3]
[349030455,1736944253721,-1536.16,0.0002246,3]
[349030456,1736944253732,-604.24,0.0002246,3]
[349030457,1736944253742,-4188.84,0.0002246,3]
[349030458,1736944253752,-3855.6,0.00022461,3]
[349030459,1736944253762,-2253.92879591,0.00022478,2]
[349030460,1736944253771,-1000.0,0.00022521,2]
[349030461,1736944253781,-405.10017332,0.00022555,2]
[349030462,1736944253791,-884.67,0.00022593,3]
[349030463,1736944253801,-500.0,0.00022593,3]
[349030464,1736944253811,-922.1,0.00022594,3]
[349030465,1736944253820,-588.73,0.00022594,3]
[349030466,1736944253830,-500.0,0.00022594,3]
[349030467,1736944253840,-722.24,0.00022594,3]
[349030468,1736944253849,-644.29,0.00022594,3]
[349030469,1736944253859,-581.19,0.00022594,3]
[349030470,1736944253870,-870.67,0.00022594,3]
[349030471,1736944253879,-594.37,0.00022594,3]
[349030472,1736944253889,-17754.08,0.00022594,3]
[349030473,1736944253898,-550.36,0.00022595,3]
[349030474,1736944253908,-286.267143,0.00022595,7]
[349030475,1736944253918,-286.267143,0.00022595,7]
[349030476,1736944253931,-487.97,0.00022595,3]
[349030477,1736944253940,-500.0,0.00022595,3]
[349030478,1736944253950,-500.0,0.00022595,3]
[349030479,1736944253959,-12842.54,0.00022595,3]
[349030480,1736944253969,-502.04,0.00022595,3]
[349030481,1736944253979,-151.25180411,0.00022596,2]
[349030482,1736944253989,-500.0,0.00022596,2]
[349030483,1736944254000,-686.40368127,0.00022596,2]
[349030484,1736944254011,-218.10095126,0.00022596,2]
[349030485,1736944254020,-500.0,0.00022596,2]
[349030486,1736944254030,-500.0,0.00022596,3]
[349030487,1736944254040,-500.0,0.00022596,3]
[349030488,1736944254049,-2046.57,0.00022597,3]
[349030489,1736944254058,-1536.16,0.00022597,3]
[349030490,1736944254069,-604.24,0.00022597,3]
[349030491,1736944254079,-4188.84,0.00022597,3]
[349030492,1736944254088,-3855.6,0.00022598,3]
[349030493,1736944254098,-1000.0,0.00022603,2]
[349030494,1736944254107,-405.10017332,0.00022659,2]
[349030495,1736944254116,-2253.92879591,0.00022713,2]
[349030496,1736944254126,-884.67,0.0002273,3]
[349030497,1736944254136,-500.0,0.0002273,3]
[349030498,1736944254147,-600.0,0.00022731,2]
[349030499,1736944254156,-922.1,0.00022731,3]
[349030500,1736944254166,-588.73,0.00022731,3]
[349030501,1736944254176,-500.0,0.00022731,3]
[349030502,1736944254186,-722.24,0.00022731,3]
[349030503,1736944254195,-644.29,0.00022731,3]
[349030504,1736944254205,-581.19,0.00022731,3]
[349030505,1736944254215,-870.67,0.00022731,3]
[349030506,1736944254224,-594.37,0.00022731,3]
[349030507,1736944254234,-17754.08,0.00022731,3]
[349030508,1736944254243,-550.36,0.00022732,3]
[349030509,1736944254252,-500.0,0.00022732,3]
[349030510,1736944254261,-500.0,0.00022732,3]
[349030511,1736944254271,-12842.54,0.00022732,3]
[349030512,1736944254280,-502.04,0.00022732,3]
[349030513,1736944254290,-500.0,0.00022733,2]
[349030514,1736944254299,-500.0,0.00022733,3]
[349030515,1736944254308,-500.0,0.00022733,3]
[349030516,1736944254317,-2046.57,0.00022734,3]
[349030517,1736944254326,-1536.16,0.00022734,3]
[349030518,1736944254335,-604.24,0.00022734,3]
[349030519,1736944254345,-4188.84,0.00022734,3]
[349030520,1736944254355,-3855.6,0.00022735,3]
[349030521,1736944254364,-405.10017332,0.00022762,2]
[349030522,1736944254374,-1200.0,0.00022781,2]
[349030523,1736944254383,-405.10017332,0.00022866,2]
[349030524,1736944254393,-884.67,0.00022867,3]
[349030525,1736944254402,-500.0,0.00022867,3]
[349030526,1736944254412,-922.1,0.00022868,3]
[349030527,1736944254422,-588.73,0.00022868,3]
[349030528,1736944254432,-500.0,0.00022868,3]
[349030529,1736944254442,-722.24,0.00022868,3]
[349030530,1736944254452,-644.29,0.00022868,3]
[349030531,1736944254461,-581.19,0.00022868,3]
[349030532,1736944254471,-870.67,0.00022868,3]
[349030533,1736944254481,-594.37,0.00022868,3]
[349030534,1736944254491,-17754.08,0.00022868,3]
[349030535,1736944254500,-550.36,0.00022869,3]
[349030536,1736944254510,-500.0,0.00022869,3]
[349030537,1736944254519,-500.0,0.00022869,3]
[349030538,1736944254530,-12842.54,0.00022869,3]
[349030539,1736944254539,-502.04,0.00022869,3]
[349030540,1736944254549,-500.0,0.0002287,2]
[349030541,1736944254558,-500.0,0.0002287,2]
[349030542,1736944254568,-286.267143,0.0002287,7]
[349030543,1736944254577,-286.267143,0.0002287,7]
[349030544,1736944254587,-44583.89783368,0.0002287,2]
[349030545,1736944254598,-500.0,0.0002287,3]
[349030546,1736944254607,-500.0,0.0002287,3]
[349030547,1736944254617,-2046.57,0.00022871,3]
[349030548,1736944254627,-1536.16,0.00022871,3]
[349030549,1736944254715,-604.24,0.00022871,3]
[349030550,1736944254727,-4188.84,0.00022871,3]
[349030551,1736944254737,-151.0,0.00022872,7]
[349030552,1736944254747,-3855.6,0.00022872,3]
[349030553,1736944254757,-2500.0,0.00022876,3]
[349030554,1736944254767,-160.0,0.00022904,4]
[349030555,1736944254776,-2253.92879591,0.00022949,2]
[349030556,1736944254787,-600.0,0.00022968,2]
[349030557,1736944254797,-405.10017332,0.00022969,2]
[349030558,1736944254807,-500.0,0.00022973,2]
[349030559,1736944254816,-500.0,0.00022973,2]
[349030560,1736944254827,-500.0,0.00022973,2]
[349030561,1736944254837,-501.98116922,0.00022973,2]
[349030562,1736944254847,-419677.87400338,0.00023,2]
[349030563,1736944254856,-7438.69753278,0.00023,2]
[349030564,1736944254866,-2927.06438146,0.00023,7]
[349030565,1736944254875,-905.2,0.00023,14]
[349030566,1736944254885,-26993.2559933,0.00023,3]
[349030567,1736944254894,-208.50202535,0.00023,2]
[349030568,1736944254904,-286.267143,0.00023,7]
[349030569,1736944254914,-7438.69753278,0.00023,3]
[349030570,1736944254926,-286.267143,0.00023,7]
[349030571,1736944254937,-247.67090363,0.00023,2]
[349030572,1736944254947,-316.48786633,0.00023,2]
[349030573,1736944254956,-884.67,0.00023004,3]
[349030574,1736944254967,-603.11,0.00023004,3]
[349030575,1736944254977,-922.1,0.00023005,3]
[349030576,1736944254988,-588.73,0.00023005,3]
[349030577,1736944255000,-500.0,0.00023005,3]
[349030578,1736944255011,-722.24,0.00023005,3]
[349030579,1736944255021,-644.29,0.00023005,3]
[349030580,1736944255030,-581.19,0.00023005,3]
[349030581,1736944255040,-870.67,0.00023005,3]
[349030582,1736944255050,-594.37,0.00023005,3]
[349030583,1736944255060,-17754.08,0.00023005,3]
[349030584,1736944255070,-550.36,0.00023006,3]
[349030585,1736944255080,-566.87,0.00023006,3]
[349030586,1736944255090,-251.06,0.00023006,3]
[349030587,1736944255100,-12842.54,0.00023006,3]
[349030588,1736944255110,-502.04,0.00023006,3]
[349030589,1736944255120,-309.76,0.00023007,2]
[349030590,1736944255129,-500.0,0.00023007,3]
[349030591,1736944255139,-496.35000004,0.00023007,3]
[349030592,1736944255149,-2046.57,0.00023008,3]
[349030593,1736944255159,-1536.16,0.00023008,3]
[349030594,1736944255168,-604.24,0.00023008,3]
[349030595,1736944255179,-4188.84,0.00023008,3]
[349030596,1736944255188,-3855.6,0.00023009,3]
[349030597,1736944255198,-163.0,0.00023014,2]
[349030598,1736944255208,-6387.65157864,0.00023019,2]
[349030599,1736944255218,-5000.0,0.00023019,2]
[349030600,1736944255228,-5000.0,0.00023019,2]
[349030601,1736944255237,-5000.0,0.00023019,2]
[349030602,1736944255247,-5000.0,0.00023019,2]
[349030603,1736944255256,-405.10017332,0.00023072,2]
[349030604,1736944255265,-153.0,0.00023093,2]
[349030605,1736944255275,-153.0,0.00023093,2]
[349030606,1736944255285,-153.0,0.00023093,2]
[349030607,1736944255294,-153.0,0.00023093,2]
[349030608,1736944255304,-153.0,0.00023093,2]
[349030609,1736944255314,-153.0,0.00023093,2]
[349030610,1736944255323,-153.0,0.00023093,2]
[349030611,1736944255333,-153.0,0.00023093,2]
[349030612,1736944255342,-153.0,0.00023093,2]
[349030613,1736944255352,-153.0,0.00023093,2]
[349030614,1736944255362,-153.0,0.00023093,2]
[349030615,1736944255371,-153.0,0.00023093,2]
[349030616,1736944255381,-153.0,0.00023093,2]
[349030617,1736944255391,-153.0,0.00023093,2]
[349030618,1736944255401,-153.0,0.00023093,2]
[349030619,1736944255411,-153.0,0.00023093,2]
[349030620,1736944255421,-153.0,0.00023093,2]
[349030621,1736944255431,-153.0,0.00023093,2]
[349030622,1736944255440,-153.0,0.00023093,2]
[349030623,1736944255451,-153.0,0.00023093,2]
[349030624,1736944255461,-153.0,0.00023093,2]
[349030625,1736944255470,-153.0,0.00023093,2]
[349030626,1736944255480,-153.0,0.00023093,2]
[349030627,1736944255490,-153.0,0.00023093,2]
[349030628,1736944255500,-153.0,0.00023093,2]
[349030629,1736944255510,-153.0,0.00023093,2]
[349030630,1736944255520,-153.0,0.00023093,2]
[349030631,1736944255529,-153.0,0.00023093,2]
[349030632,1736944255539,-153.0,0.00023093,2]
[349030633,1736944255548,-153.0,0.00023093,2]
[349030634,1736944255558,-153.0,0.00023093,2]
[349030635,1736944255568,-8483.78,0.000231,2]
[349030636,1736944255578,-286.267143,0.000231,7]
[349030637,1736944255587,-286.267147,0.000231,7]
[349030638,1736944255597,-884.81,0.00023141,3]
[349030639,1736944255608,-922.13,0.00023142,3]
[349030640,1736944255618,-588.91,0.00023142,3]
[349030641,1736944255628,-353.14,0.00023142,3]
[349030642,1736944255638,-722.25,0.00023142,3]
[349030643,1736944255649,-644.32,0.00023142,3]
[349030644,1736944255659,-581.26,0.00023142,3]
[349030645,1736944255669,-870.74,0.00023142,3]
[349030646,1736944255679,-594.47,0.00023142,3]
[349030647,1736944255689,-17754.15664374,0.00023142,3]
[349030648,1736944255698,-550.36,0.00023143,3]
[349030649,1736944255708,-12842.7568,0.00023143,3]
[349030650,1736944255719,-502.22,0.00023143,3]
[349030651,1736944255730,-500.0,0.00023144,2]
[349030652,1736944255740,-204.97,0.00023144,3]
[349030653,1736944255750,-2046.69,0.00023145,3]
[349030654,1736944255760,-1536.22,0.00023145,3]
[349030655,1736944255770,-604.44,0.00023145,3]
[349030656,1736944255780,-4189.01562897,0.00023145,3]
[349030657,1736944255790,-3855.77692087,0.00023146,3]
[349030658,1736944255800,-151.0,0.00023153,7]
[349030659,1736944255809,-405.10017332,0.00023176,2]
[349030660,1736944255819,-2253.92879591,0.00023184,2]
[349030661,1736944255830,-405.10017332,0.00023279,2]
[349030662,1736944255840,-1286.0,0.00023328,7]
[349030663,1736944255850,-405.10017332,0.00023383,2]
[349030664,1736944255860,-37717.2,0.00023389,60]
[349030665,1736944255870,-500.0,0.00023418,2]
[349030666,1736944255880,-2253.92879591,0.0002342,2]
[349030667,1736944255891,-151.0,0.00023435,7]
[349030668,1736944255901,-151.0,0.00023435,7]
[349030669,1736944255911,-22549.70972143,0.00023452,2]
[349030670,1736944255923,-405.10017332,0.00023486,2]
[349030671,1736944255934,-1224.779161,0.000235,3]
[349030672,1736944255946,-4790.29,0.000235,14]
[349030673,1736944255958,-501.97186633,0.00023521,2]
[349030674,1736944255970,-500.79486465,0.00023521,2]
[349030675,1736944255980,-1125.83993242,0.00023521,2]
[349030676,1736944255991,-1500.0,0.00023522,2]
[349030677,1736944256003,-160.0,0.00023555,5]
[349030678,1736944256014,-405.10017332,0.0002359,2]
[349030679,1736944256024,-2000.0,0.000236,2]
[349030680,1736944256034,-75337.62204228,0.000236,7]
[349030681,1736944256043,-2000.0,0.000236,2]
[349030682,1736944256053,-2553.94,0.000236,14]
[349030683,1736944256062,-249.0,0.00023616,2]
[349030684,1736944256073,-2253.92879591,0.00023655,2]
[349030685,1736944256083,-500.0,0.00023692,2]
[349030686,1736944256094,-405.10017332,0.00023693,2]
[349030687,1736944256103,-587.0,0.00023698,2]
[349030688,1736944256112,-8812.08900242,0.000237,30]
[349030689,1736944256122,-151.0,0.00023716,7]
[349030690,1736944256132,-151.0,0.00023716,7]
[349030691,1736944256141,-93548.84786391,0.00023755,61]
[349030692,1736944256243,-38360.9058569,0.00023755,61]
[349030693,1736944256455,-2029.67,0.0001999,3]
[349030694,1736944256465,-2029.67,0.00020127,3]
[349030695,1736944256474,-152.0,0.00020155,2]
[349030696,1736944256484,-2029.67,0.00020264,3]
[349030697,1736944256494,-529.30003744,0.00020401,3]
[349030698,1736944256511,-500.0,0.00020401,3]
[349030699,1736944256523,-1000.36996256,0.00020401,3]
[349030700,1736944256532,-500.0,0.00020402,3]
[349030701,1736944256542,-2029.67,0.00020538,3]
[349030702,1736944256551,-36.95323792,0.00020539,3]
[349030713,1736945102845,175.312586,0.00013973,2]
[349030715,1736945248100,-274.48250389,0.000189,2]
[349030716,1736945248122,-2537.8046871,0.0001915,2]
[349030765,1736945432559,-300.0,0.00019149,2]
[349030767,1736945432569,-121.36792176,0.0001915,2]
[349030769,1736945432580,-7953.16841348,0.0001915,2]
[349030774,1736945432615,-3701.04031526,0.0001915,2]
[349030776,1736945432624,-250.0,0.00019332,2]
[349030778,1736945432635,-1337.8728216,0.00019637,2]
[349030780,1736945432644,-252.319667,0.00019746,2]
[349030782,1736945432653,-713.466386,0.00019757,2]
[349030784,1736945432663,-166.5188879,0.000198,2]
[349030786,1736945432672,-500.0,0.00019994,3]
[349030788,1736945432681,-312.76307913,0.00019994,3]
[349030790,1736945432691,-374.95152588,0.00020126,3]
[349030792,1736945432700,-238.43108563,0.00020126,3]
[349030794,1736945432711,-359.39693496,0.00020126,3]
[349030796,1736945432720,-500.37,0.00020126,3]
[349030799,1736945432730,-500.0,0.00020126,3]
[349030801,1736945432739,-500.0,0.00020126,3]
[349030803,1736945432748,-500.0,0.00020261,3]
[349030805,1736945432757,-500.0,0.00020261,3]
[349030808,1736945432767,-500.0,0.00020261,3]
[349030810,1736945432776,-500.0,0.00020261,3]
[349030812,1736945432785,-1705.72,0.00020261,3]
[349030814,1736945432795,-500.0,0.00020262,3]
[349030816,1736945432804,-500.0,0.00020263,3]
[349030818,1736945432813,-500.0,0.00020263,3]
[349030820,1736945432822,-500.0,0.00020263,3]
[349030822,1736945432832,-500.0,0.00020263,3]
[349030824,1736945432841,-500.0,0.00020263,3]
[349030826,1736945432851,-500.0,0.00020263,3]
[349030828,1736945432860,-500.0,0.00020398,3]
[349030830,1736945432870,-1705.72,0.00020398,3]
[349030832,1736945432879,-500.0,0.000204,3]
[349030834,1736945432889,-500.0,0.000204,3]
[349030836,1736945432898,-500.0,0.000204,3]
[349030838,1736945432908,-500.0,0.000204,3]
[349030840,1736945432917,-500.0,0.000204,3]
[349030842,1736945432926,-500.0,0.000204,3]
[349030844,1736945432936,-330.71025876,0.00020435,2]
[349030846,1736945432945,-1705.72,0.00020535,3]
[349030848,1736945432955,-154.02,0.00020537,3]
[349030850,1736945432964,-500.0,0.00020537,3]
[349030852,1736945432973,-500.0,0.00020537,3]
[349030854,1736945432982,-500.0,0.00020537,3]
[349030856,1736945432991,-1705.72,0.00020672,3]
[349030858,1736945433000,-500.0,0.00020674,3]